Cogmind - Beta 14 --- EXPLORER MODE // 2024.11.18 @ 04:28:28 Player: Nah Bohdi Result: Self-destructed Performance ------------- Evolutions (1) 500 Regions Visited (4) 800 Robots Destroyed (44) 220 Value Destroyed (1157) 1157 Prototype IDs (6) 120 Alien Tech Used (0) 0 Bonus (0) 0 TOTAL SCORE: 2797 Bonus ------- None Cogmind --------- Core Integrity 386/400 Matter 282/300 Energy 19/125 System Corruption 2% Temperature Warning (307) Movement Treading (160) Location -9/Exiles Parts ------- > --- POWER (1) -------- Light Ion Engine > --- PROPULSION (3) --- Light Treads Light Treads Improved Treads > --- UTILITY (4) ------ Medium Storage Unit Improved Targeting Computer Light Armor Plating Shield Generator > --- WEAPON (2) ------- Beam Rifle Beam Cannon > --- INVENTORY (10) --- Nuclear Core Light Fission Core Light Treads Large Battery (200) High-capacity Matter Pod (200) High-capacity Matter Pod (200) Light Armor Plating Light EM Pulse Cannon EMP Blaster Peak State ------------ > --- POWER ------------ Light Ion Engine > --- PROPULSION ------- Light Treads Light Treads Improved Treads > --- UTILITY ---------- Medium Storage Unit Improved Targeting Computer Light Armor Plating Shield Generator > --- WEAPON ----------- Beam Rifle Beam Cannon > --- INVENTORY -------- Nuclear Core Light Treads Small Battery High-capacity Matter Pod High-capacity Matter Pod Light Armor Plating Light EM Pulse Cannon EMP Blaster [Rating: 15] Favorites ----------- Power Light Ion Engine Engine Light Ion Engine Propulsion Light Treads Treads Light Treads Hover Unit Hover Unit Utility Light Armor Plating Device Shield Generator Storage Medium Storage Unit Processor Targeting Computer Protection Light Armor Plating Weapon EM Pulse Gun Energy Gun EM Pulse Gun Energy Cannon Beam Cannon Ballistic Gun Assault Rifle Build | -11 -10 -9 -9 -9 ------- Run | Yrd Mat Mat Min Exi Slots Evolved 3 | . 1 2 . . Power . | . . . . . Propulsion 1 | . . 1 . . Utility 2 | . 1 1 . . Weapon . | . . . . . Parts Attached 41 | 7 19 13 1 1 Power 5 | 1 2 1 . 1 Engine 5 | 1 2 1 . 1 Core . | . . . . . Reactor . | . . . . . Propulsion 13 | 2 7 4 . . Treads 11 | 2 5 4 . . Leg . | . . . . . Wheel . | . . . . . Hover 2 | . 2 . . . Flight . | . . . . . Utility 15 | 2 6 6 1 . Device 1 | . . 1 . . Storage 3 | . 2 . 1 . Processor 3 | 1 1 1 . . Hackware . | . . . . . Protection 8 | 1 3 4 . . Artifact . | . . . . . Weapon 8 | 2 4 2 . . Energy Gun 6 | 1 3 2 . . Energy Cannon 1 | . 1 . . . Ballistic Gun 1 | 1 . . . . Ballistic Cannon . | . . . . . Launcher . | . . . . . Special Weapon . | . . . . . Impact Weapon . | . . . . . Slashing Weapon . | . . . . . Piercing Weapon . | . . . . . Special Melee Weapon . | . . . . . Unidentified Prototypes . | . . . . . Parts Lost 2 | . 2 . . . Power 1 | . 1 . . . Propulsion 1 | . 1 . . . Utility . | . . . . . Weapon . | . . . . . Highest Loss Streak 1 | . 1 . . . To Critical Strikes . | . . . . . Average Slot Usage (%) 97 | . 94 98 100 99 Engine 10 | . 11 10 10 9 Treads 25 | . 21 28 30 30 Hover 1 | . 3 . . . Device 4 | . . 7 10 10 Storage 2 | . . . 4 10 Processor 14 | . 20 8 10 10 Protection 15 | . 11 24 15 10 Energy Gun 13 | . 17 10 10 10 Energy Cannon 6 | . 2 10 10 10 Ballistic Gun 1 | . 4 . . . Peak Build Rating 15 | 7 9 14 14 15 Average Rating 10 | 6 8 12 13 14 On Entrance 8 | . 7 9 14 14 Naked Turns . | . . . . . Heaviest Build 24 | 10 20 21 24 24 Greatest Support 63 | 40 40 63 63 63 Greatest Overweight (x) 1 | . 1 . . . Average Overweight (x) . | . . . . . Largest Inventory Capacity 10 | 5 10 5 10 10 Average Capacity 5 | 5 5 5 7 10 Most Carried 10 | 4 5 5 7 10 Average Carried 4 | 2 3 4 5 8 Final Capacity 10 | 5 5 5 10 10 Final Carried 9 | 3 5 5 7 9 Class Distribution -------------------- 100% | Hacker-Mutant Dominant Class ---------------- Hacker-Mutant | -10/Materials Hacker-Mutant | -9/Materials Hacker-Mutant | -9/Mines Hacker-Mutant | -9/Exiles Resources | -11 -10 -9 -9 -9 ----------- Run | Yrd Mat Mat Min Exi Matter Collected 917 | 218 523 146 30 . Remotely . | . . . . . Salvage Created 1660 | . 732 896 . 32 Parts 99 | . 37 59 . 3 Haulers Intercepted . | . . . . . Recyclers Shooed 1 | . . 1 . . Parts Field Recycled . | . . . . . Retrieved Matter . | . . . . . Parts Self-Destructed . | . . . . . Prevented . | . . . . . Kills | -11 -10 -9 -9 -9 ------- Run | Yrd Mat Mat Min Exi Combat Hostiles Destroyed 29 | . 14 15 . . Guns 23 | . 14 9 . . Cannons 6 | . . 6 . . Classes Destroyed 9 | . 3 5 . 1 Worker 1 | . 1 . . . Builder 1 | . . 1 . . Recycler 3 | . . 3 . . Operator 1 | . . 1 . . Watcher 7 | . 3 4 . . Swarmer 5 | . . 5 . . Grunt 20 | . 14 6 . . Sentry 4 | . . 4 . . Zionite 2 | . . . . 2 Best Kill Streak 4 | . 3 4 . 2 Combat Bots Only 3 | . 3 3 . . Max Kills in Single Turn 2 | . 2 1 . 1 Gunslinging . | . . . . . Exploded . | . . . . . Melee . | . . . . . Uniques/NPCs Destroyed . | . . . . . Combat | -11 -10 -9 -9 -9 -------- Run | Yrd Mat Mat Min Exi Hostile Shots Fired 169 | . 101 51 . 17 Missed 47 | . 31 13 . 3 Damage Taken 845 | . 573 198 . 74 Core 106 | . 92 3 . 11 Absorbed by Shields 86 | . . 55 . 31 Ignored by Resistances 588 | . 356 166 . 66 Regen/Repaired (Parts) 179 | . 135 44 . . Core Remaining (%) 81 | 100 63 . . . Volleys Fired 94 | . 52 36 . 6 Largest 2 | . 2 2 . 2 Hottest 116 | . 80 100 . 116 Shots Fired 183 | . 102 68 . 13 Gun 141 | . 102 32 . 7 Cannon 42 | . . 36 . 6 Launcher . | . . . . . Special . | . . . . . Kinetic 39 | . 39 . . . Thermal 90 | . 41 36 . 13 Explosive . | . . . . . Electromagnetic 54 | . 22 32 . . Robot Hit Streak 29 | . 26 19 . 29 Robot Miss Streak 3 | . 1 3 . . Penetration Max . | . . . . . Secondary Targets 2 | . 2 . . . Max Gunslinging Chain 1 | . 1 . . . Shots Hit Robots 145 | . 86 46 . 13 Core Hits 67 | 3 34 28 . 2 Critical Kills . | . . . . . Critical Parts Destroyed . | . . . . . Critical Strikes 8 | . 5 3 . . Burn 4 | . 4 . . . Corrupt 4 | . 1 3 . . Melee Attacks . | . . . . . Impact . | . . . . . Slashing . | . . . . . Piercing . | . . . . . Sneak Attacks . | . . . . . Combat Hostiles . | . . . . . Follow-up Attacks . | . . . . . Damage Inflicted 2113 | 5 1152 761 . 195 Guns 1567 | . 1150 329 . 88 Cannons 492 | . . 385 . 107 Explosions 43 | . . 43 . . Melee . | . . . . . Ramming 11 | 5 2 4 . . Kinetic 443 | . 443 . . . Thermal 1064 | . 441 428 . 195 Explosive . | . . . . . Electromagnetic 595 | . 266 329 . . Impact . | . . . . . Slashing . | . . . . . Piercing . | . . . . . Highest Corruption 2 | . . 1 1 2 Average Corruption 1 | . . 1 1 1 Corruption Purged . | . . . . . Corruption Blocked . | . . . . . Effects 13 | . . 8 1 4 Message Errors 4 | . . 2 . 2 Matter Fused 4 | . . 2 1 1 Energy Discharges 1 | . . 1 . . Data Loss (minor) 2 | . . 2 . . Misfires 1 | . . . . 1 Alerts 1 | . . 1 . . Overload Shots . | . . . . . Overflow Damage . | . . . . . Projectiles . | . . . . . Explosions . | . . . . . Melee . | . . . . . Knockbacks . | . . . . . Impact . | . . . . . Kinetic . | . . . . . Secondary . | . . . . . Self-Inflicted Damage . | . . . . . Shots . | . . . . . Rammed 6 | 3 1 2 . . Targets Rammed 9 | 3 1 5 . . Kicked . | . . . . . Crushed 3 | . . 3 . . Highest Temperature 348 | . 348 342 . 307 Average Temperature 108 | . 112 102 . 137 Received Heat Transfer 662 | . 549 113 . . Effects 9 | . 4 4 . 1 Shutdowns 1 | . 1 . . . Energy Bleed 2 | . 1 . . 1 Interference 5 | . 2 3 . . Short Circuit 1 | . . 1 . . Siege Activations . | . . . . . Robots Corrupted . | . . . . . Combat Hostiles . | . . . . . Parts Fried 1 | . 1 . . . Impact Corruptions . | . . . . . Robots Melted . | . . . . . Combat Hostiles . | . . . . . Parts Melted 2 | . 1 1 . . Heat Transferred 2899 | . 1591 864 . 444 Parts Sabotaged . | . . . . . Parts Stolen . | . . . . . Parts Stripped . | . . . . . Power Chain Reactions 1 | . . 1 . . Alert | -11 -10 -9 -9 -9 ------- Run | Yrd Mat Mat Min Exi Peak Influence 312 | . 250 312 45 . Initial 45 | . . . 45 . Average 65 | . 61 101 38 . Maximum Alert Level 1 | . 1 1 . . Low Security (%) 91 | 100 91 86 100 . Level 1 8 | . 8 13 . . Level 2 . | . . . . . Level 3 . | . . . . . Level 4 . | . . . . . Level 5 . | . . . . . High Security . | . . . . . Max Security . | . . . . . Squads Dispatched 5 | . 2 3 . . Investigation 3 | . 2 1 . . Extermination . | . . . . . Reinforcement 2 | . . 2 . . Assault . | . . . . . Garrison . | . . . . . Intercept . | . . . . . Searches Triggered . | . . . . . Construction Impeded . | . . . . . Haulers Reinforced . | . . . . . Active Scanning Responses . | . . . . . Cargo Convoy Interrupts . | . . . . . Stealth | -11 -10 -9 -9 -9 --------- Run | Yrd Mat Mat Min Exi Distress Signals 6 | . 3 3 . . Communications Jammed . | . . . . . Distress Signals . | . . . . . Times Spotted 50 | . 21 23 . 6 Peak Tracking Total 12 | . 7 4 . 12 Tactical Retreats 2 | . 2 . . . Traps | -11 -10 -9 -9 -9 ------- Run | Yrd Mat Mat Min Exi Traps Triggered 5 | . 4 1 . . Indirectly . | . . . . . Trap Hack Attempts . | . . . . . Triggered . | . . . . . Disarmed . | . . . . . Reprogrammed . | . . . . . Reused . | . . . . . Traps Extracted . | . . . . . Installed . | . . . . . Triggered . | . . . . . Machines | -11 -10 -9 -9 -9 ---------- Run | Yrd Mat Mat Min Exi Machines Disabled 2 | . . 1 . 1 Max in Single Turn 1 | . . 1 . 1 Machines Repaired . | . . . . . Machines Dismantled . | . . . . . Machines Sabotaged . | . . . . . Overloaded Fab Kills . | . . . . . Hacking | -11 -10 -9 -9 -9 --------- Run | Yrd Mat Mat Min Exi Machines Accessed 19 | . 11 7 . 1 Terminals 13 | . 8 5 . . Fabricators . | . . . . . Repair Stations 2 | . 1 1 . . Recycling Units 3 | . 2 1 . . Scanalyzers . | . . . . . Garrison Access . | . . . . . Total Hacks 55 | . 37 17 . 1 Successful 41 | . 30 10 . 1 Failed 14 | . 7 7 . . Catastrophic 1 | . . 1 . . Database Lockouts . | . . . . . Manual . | . . . . . Terminals 40 | . 27 13 . . Fabricators . | . . . . . Repair Stations 6 | . 4 2 . . Recycling Units 8 | . 6 2 . . Scanalyzers . | . . . . . Garrison Access . | . . . . . Terminal Hacks 28 | . 21 6 . 1 Record 8 | . 7 . . 1 Prototype ID Bank 4 | . 2 2 . . Branch Access Points 1 | . 1 . . . Emergency Access Points 3 | . 3 . . . Alert Level 1 | . . 1 . . Unreport Threat 1 | . . 1 . . Locate Traps 3 | . 2 1 . . Dispatch Records 1 | . 1 . . . Maintenance Status 1 | . 1 . . . Transport Status 1 | . 1 . . . Recall Investigation 1 | . 1 . . . Hauler Manifests 1 | . 1 . . . Registered Components 1 | . 1 . . . Zone Layout 1 | . . 1 . . Fabricator Hacks . | . . . . . Repair Station Hacks 6 | . 4 2 . . Scan Component 3 | . 2 1 . . Repair 3 | . 2 1 . . Recycling Unit Hacks 7 | . 5 2 . . Process 1 | . 1 . . . Report Inventory 3 | . 2 1 . . Retrieve Matter 1 | . 1 . . . Retrieve Components 2 | . 1 1 . . Scanalyzer . | . . . . . Garrison Access Hacks . | . . . . . Unauthorized Hacks . | . . . . . Terminals . | . . . . . Fabricators . | . . . . . Repair Stations . | . . . . . Recycling Units . | . . . . . Scanalyzers . | . . . . . Garrison Access . | . . . . . Data Cores Recovered 1 | . . 1 . . Used . | . . . . . Hacking Detections 11 | . 7 4 . . Full Trace Events 7 | . 6 1 . . Feedback Events 1 | . . 1 . . Corruption 1 | . . 1 . . Feedback Blocked . | . . . . . Robot Schematics Acquired . | . . . . . Robots Built . | . . . . . Authchips . | . . . . . Time . | . . . . . Total Robot Build Rating . | . . . . . Part Schematics Acquired . | . . . . . Parts Built . | . . . . . Authchips . | . . . . . Time . | . . . . . Total Part Build Rating . | . . . . . Parts Repaired 3 | . 2 1 . . Time 78 | . 52 26 . . Parts Recycled . | . . . . . Recycled Matter 2 | . 2 . . . Retrieved Matter 2 | . 2 . . . Retrieved Components 18 | . 9 9 . . Parts Scanalyzed . | . . . . . Part Schematics Acquired . | . . . . . Parts Damaged . | . . . . . Bothacking | -11 -10 -9 -9 -9 ------------ Run | Yrd Mat Mat Min Exi Used RIF Installer . | . . . . . Robots Hacked . | . . . . . Non-combat . | . . . . . Combat . | . . . . . Robot Hacks Applied . | . . . . . Relay Couplers Released . | . . . . . Fabnet Peak Effective % . | . . . . . Robots Rewired . | . . . . . Allies Hacked . | . . . . . Hacks Repelled . | . . . . . Allies | -11 -10 -9 -9 -9 -------- Run | Yrd Mat Mat Min Exi Total Allies 2 | . . . 2 . Largest Group 2 | . . . 2 1 Highest-Rated Group 46 | . . . 46 31 Highest-Rated Ally 31 | . . . 31 31 Total Orders . | . . . . . Ally Attacks . | . . . . . Total Damage . | . . . . . Kills . | . . . . . Allies Corrupted . | . . . . . Allies Melted . | . . . . . Intel | -11 -10 -9 -9 -9 ------- Run | Yrd Mat Mat Min Exi Robot Analysis Total . | . . . . . Derelict Logs Recovered . | . . . . . Drone Launches . | . . . . . Drone Recoveries . | . . . . . Exploration | -11 -10 -9 -9 -9 ------------- Run | Yrd Mat Mat Min Exi Turns Passed 4229 | 288 1820 1093 471 557 Spaces Moved 2265 | 79 997 565 291 333 Core 6 | 6 . . . . Treads 2097 | 73 835 565 291 333 Legs . | . . . . . Wheels . | . . . . . Hover 162 | . 162 . . . Flight . | . . . . . Fastest Speed 50 | 50 56 160 160 160 Average Speed 152 | 151 143 160 160 160 Slowest Speed 160 | 160 160 160 160 160 Overloaded Moves . | . . . . . Propulsion Burnouts . | . . . . . Robots Hopped . | . . . . . Cave-ins Triggered . | . . . . . Exploration Rate (%) 59 | 6 95 51 68 76 Regions Visited 4 Branch Regions 2 Pre-discovered Areas . | . . . . . Known Exits Taken 4 | 1 1 1 1 . Unknown Exits Taken . | . . . . . Scrap Searched . | . . . . . Spaces Dug . | . . . . . Terrain Destroyed 3 | . . 3 . . Melee . | . . . . . Projectile . | . . . . . AOE 3 | . . 3 . . Terrain Rammed . | . . . . . Walls Destroyed . | . . . . . Machines Disabled . | . . . . . Actions | -11 -10 -9 -9 -9 --------- Run | Yrd Mat Mat Min Exi Total 2859 | 246 1284 686 297 346 Wait 380 | 148 184 45 3 . Move 2261 | 78 996 564 290 333 Hop . | . . . . . Pick Up 44 | 10 19 9 2 4 Fast Attach 10 | . 1 8 1 . Attach 24 | 7 12 4 . 1 Detach 4 | . 4 . . . Swap 7 | . 6 1 . . Drop 26 | . 9 14 1 2 Fire 94 | . 52 36 . 6 Melee . | . . . . . Ram . | . . . . . Kick . | . . . . . Crush 9 | 3 1 5 . . Escape Stasis . | . . . . . Rewire . | . . . . . Trap . | . . . . . Miscellaneous . | . . . . . Route ------- -11/Scrapyard -10/Materials (discovered 4 exits: *Mat x3 / *Min) -9/Materials (discovered 3 exits: *Mat / *Min / *Sto) -9/Mines (discovered 3 exits: *Mat / *Exi / [*Zio]) -9/Exiles (discovered 1 exit: *Min) History --------- Turn | Location | Event 46 | -11/Scrapyard | Identified exit to Materials 46 | -11/Scrapyard | Discovered exit to Materials (range 16) 289 | -11/Scrapyard | Entered Materials 289 | -10/Materials | Evolved 1 slot: Utility x1 310 | -10/Materials | Build established: Hacker-Mutant 741 | -10/Materials | Identified exit to Materials 741 | -10/Materials | Discovered exit to Materials (range 4) 1104 | -10/Materials | Repaired Lgt. Armor Plating 1132 | -10/Materials | Repaired Lgt. Treads 1225 | -10/Materials | Identified exit to Mines 1225 | -10/Materials | Discovered exit to Mines (range 11) 1272 | -10/Materials | Discovered exit to Materials (range 10) 1624 | -10/Materials | Discovered exit to Materials (range 16) 2109 | -10/Materials | Entered another Materials area 2109 | -9/Materials | Evolved 2 slots: Propulsion x1, Utility x1 2223 | -9/Materials | Identified exit to Storage 2223 | -9/Materials | Discovered exit to Storage (range 14) 2855 | -9/Materials | Identified exit to Materials 2855 | -9/Materials | Discovered exit to Materials (range 15) 2914 | -9/Materials | Repaired Lgt. Treads 3188 | -9/Materials | Identified exit to Mines 3188 | -9/Materials | Discovered exit to Mines (range 7) 3202 | -9/Materials | Entered Mines 3250 | -9/Mines | A Derelict revealed a hidden shortcut to a safe place 3356 | -9/Mines | Discovered exit to Materials (range 12) 3665 | -9/Mines | Deemed a non-threat by the Exiles lab entrance 3667 | -9/Mines | Identified exit to Exiles 3667 | -9/Mines | Discovered exit to Exiles (range 5) 3673 | -9/Mines | Entered Exiles 3673 | -9/Exiles | Accompanied by 1 ally 3703 | -9/Exiles | Led the pair of lost Derelicts to a safe place 3720 | -9/Exiles | Met 8R-AWN 3745 | -9/Exiles | Met EX-HEX 3796 | -9/Exiles | Met EX-BIN 3961 | -9/Exiles | Met EX-DEC 4044 | -9/Exiles | Identified exit to Mines 4044 | -9/Exiles | Discovered exit to Mines (range 12) 4196 | -9/Exiles | Visited The Gauntlet 4208 | -9/Exiles | Attacked by the Exiles 4230 | -9/Exiles | Self-destructed Last Messages --------------- move in here and I'll invert your atomic chain! EX-DEC: "Oops, I hope HEX didn't hear that..." Connecting with EX-Message Board... EXIT=FOUND: MINES Extracted 6 energy. Acquired Lrg. Battery. Dropped Sml. Battery. System corrupted: Matter fused (-8). System corrupted: FCS attempts to trigger Beam Rifle. System corrupted: Beam Rifle misfires. EXILES: Hostile robot within lab perimeter. Defensive protocols time, folks! Machine disabled. J5-HVA destroyed. W1-DM0 destroyed. 5L-KAT destroyed. Overheating: Energy bleed (-9). Machine disabled. Map ----- +----------------------------------------------------+ | ?????????????#"" ""#??? ???####""" " | | ?????????????#" """"#???????????###""" | | ?????????????#""" """#?????????????#### | | ?????????????## ""#?????????????????? | | ??????????????#"" """##?????????????????? | | ??????????????##""" ##??????????????????? | | ???????????????##"""" ##???????????????????? | | ????????????????### #????????????????????? | | ??????????????????##### ##????????????????????? | | ??????????????????????## #?????????????????????? | | ???????????????????????# #?????????????????????? | | ???????????????????????# #?????????????????????? | | ???????????????????????# #?????????????????????? | | ???????????????????????# a#?????????????????????? | | ???????????????????????# a #?????????????????????? | | ???????????????????????# #?????????????????????? | | ???????????????????????# #?????????????????????? | | ???????????????????????# #?????????????????????? | | ??????????????" ??????#% #?????????????????????? | | ?????????????##"""######* ########??????????????? | | ????????????""" """""c """""""#??????????????? | | ???????????""" z "#"" "??????????? | | ????????? %= " "??????????? | | ????????? g = a " " ??????????? | | ????????? " ""??????????? | | ?????????? "" @ !%= #"" "??????????? | | ??????????"""" " """ """""#??????????????? | | ????????????###"""########"""######??????????????? | | ??????????????" ?????????" ""??????????????????? | | ?????????????????????????" """#?????????????????? | | ????????????????????????"""""""#?????????????????? | | ????????????????????????"" """"#?????????????????? | | ?????????????????????????"""""???????????????????? | | ?????????????????????????####????????????????????? | | ?????????????????????????????????????????????????? | | ?????????????????????????????????????????????????? | | ?????????????????????????????????????????????????? | | ?????????????????????????????????????????????????? | | | | | | | | | | | | | | | | | | | | | | | | | +----------------------------------------------------+ Best States ------------- Heat Dissipation 28 Energy Generation 10 Energy Capacity 250 Matter Stores 473 Matter Capacity 500 Sight Range 18 Terrain Scan Density 10 Armor Coverage 450 Resistance: KI 35 Resistance: TH 35 Resistance: EX 35 Resistance: EM 35 Resistance: I 35 Resistance: S 35 Resistance: P 35 Utility Shielding 33 Evasion (%) 53 Targeting Accuracy 6 Recoil Reduction 3 Offensive Hacking 20 Item Schematics ----------------- None Robot Schematics ------------------ None Fabricated ------------ Nothing Alien Tech Used ----------------- None Achievements -------------- Everything Is Under Control Challenges ------------ None Game ------ Seed GrapheneOpticalAirjet Manual? 0 Play Time 00:42:26 Cumulative 8.9 hours Start 2024.11.18 @ 03:32:54 End 2024.11.18 @ 04:28:28 Sessions 1 Manual Loads 0 Difficulty Explorer Special Mode None Game No. 5 Rogue 0 Adventurer 0 Explorer 5 Win Type - Total 0 Types 0/0/0/0/0/0/0/0/0 Lore% 3 Gallery% 12 Achievement% 12 Wizard Run 0 Options --------- Layout 1 ASCII 0 Keyboard 0 Movement Numpad Keybinds 0 Fullscreen 1 Font 24/Smallcaps Map View 50x35 Zoom Use 0% Tactical HUD 0 Map Filters NONE Filters NONE Steam 1 RUN: f7d58df1-9f0a-4ae1-bd8e-3af28e3a1adb